bitfinex/quotes_SOLUSD_20240726
["timestamp","ask_amount","ask_price","bid_price","bid_amount"]
[1721997068531,13.9556,179.14,178.95,31.1822136]
[1721997068532,20.0,179.14,178.95,31.1822136]
[1721997068733,5.5834,179.1,178.96,45.0]
[1721997069030,40.0,179.12,178.96,45.0]
[1721997069205,5.5847,179.06,178.95,31.1822136]
[1721997069411,20.0,179.07,178.95,0.8122136]
[1721997069616,5.5859,179.03,178.95,0.8122136]
[1721997069827,20.0,179.07,178.95,0.8122136]
[1721997070023,5.5853,179.04,178.95,0.8122136]
[1721997070220,20.0,179.08,178.95,0.8122136]
[1721997070436,5.5853,179.05,178.95,0.8122136]
[1721997070621,20.0,179.08,178.95,0.8122136]
[1721997070940,25.5833,179.11,178.95,31.1822136]
[1721997071243,5.5833,179.11,178.95,31.1822136]
[1721997071413,5.5838,179.09,178.95,31.1822136]
[1721997071625,5.5839,179.09,178.96,45.0]
[1721997072237,20.0,179.09,178.96,45.0]
[1721997072537,5.5841,179.08,178.96,45.0]
[1721997072942,20.0,179.1,178.96,45.0]
[1721997073118,25.584,179.09,178.96,45.0]
[1721997073451,40.0,179.07,178.95,0.8122136]
[1721997073748,13.959,179.1,178.95,0.8122136]
[1721997073749,5.586,179.02,178.95,0.8122136]
[1721997074240,20.0,179.01,178.95,0.8122136]
[1721997074447,40.0,179.01,178.95,0.8122136]
[1721997074644,20.0,178.99,178.95,0.8122136]
[1721997074942,5.5872,178.98,178.95,0.8122136]
[1721997075144,5.5875,178.97,178.95,0.8122136]
[1721997075340,5.5872,178.98,178.95,0.8122136]
[1721997075554,20.0,178.99,178.95,0.8122136]
[1721997075731,0.9690915,178.97,178.95,0.8122136]
[1721997077132,0.9690915,178.97,178.95,31.1822136]
[1721997077321,20.0,179.08,178.95,31.1822136]
[1721997077647,0.96878524,178.97,178.95,0.8122136]
[1721997077944,5.5878,178.96,178.95,0.8122136]
[1721997078316,40.96926073,178.97,178.95,0.8122136]
[1721997078517,20.96926073,178.97,178.95,0.8122136]
[1721997078820,0.96926073,178.97,178.95,0.8122136]
[1721997080342,45.5878,178.96,178.95,0.8122136]
[1721997080528,40.0,178.96,178.95,0.8122136]
[1721997080734,0.96926073,178.97,178.95,0.8122136]
[1721997082932,20.0,179.0,178.95,0.8122136]
[1721997083251,20.0,178.99,178.95,0.8122136]
[1721997083460,20.0,178.96,178.95,0.8122136]
[1721997084644,25.5878,178.96,178.95,0.8122136]
[1721997085279,20.0,178.87,178.79,2.25180958]
[1721997085561,20.0,178.85,178.77,31.1822136]
[1721997085933,20.0,178.88,178.77,36.7756136]
[1721997086134,20.0,178.86,178.77,31.1822136]
[1721997086357,20.0,178.86,178.77,6.4057136]
[1721997086561,20.0,178.86,178.77,6.4058136]
[1721997086861,20.0,178.86,178.77,0.8122136]
[1721997087273,20.0,178.83,178.77,0.8122136]
[1721997087836,20.0,178.81,178.77,0.8122136]
[1721997088037,20.0,178.83,178.77,0.8122136]
[1721997088348,20.0,178.82,178.77,0.8122136]
[1721997088563,20.0,178.8,178.77,0.8122136]
[1721997090050,20.0,178.78,178.77,0.8122136]
[1721997090246,20.0,178.8,178.77,0.8122136]
[1721997090447,20.0,178.81,178.77,0.8122136]
[1721997090670,20.0,178.82,178.77,0.8122136]
[1721997090874,20.0,178.81,178.77,0.8122136]
[1721997091048,6.4231,178.88,178.77,0.8122136]
[1721997091049,20.0,178.79,178.77,0.8122136]
[1721997091475,20.0,178.81,178.77,0.8122136]
[1721997091772,20.0,178.82,178.77,0.8122136]
[1721997091989,20.0,178.81,178.77,0.8122136]
[1721997092296,20.0,178.85,178.77,0.8122136]
[1721997092481,6.5442,178.92,178.77,0.8122136]
[1721997092482,20.0,178.83,178.77,0.8122136]
[1721997092999,20.0,178.85,178.77,0.8122136]
[1721997093288,20.0,178.87,178.77,20.8122136]
[1721997093444,20.0,178.87,178.77,26.4056136]
[1721997093649,20.0,178.85,178.77,20.8122136]
[1721997093948,20.0,178.87,178.79,5.5931]
[1721997094144,20.0,178.87,178.8,45.0]
[1721997094655,20.0,178.87,178.8,50.5925]
[1721997094866,20.0,178.84,178.8,45.0]
[1721997095180,20.0,178.82,178.77,20.8122136]
[1721997095364,20.0,178.8,178.77,0.8122136]
[1721997095950,20.0,178.78,178.77,0.8122136]
[1721997096586,20.0,178.8,178.77,0.8122136]
[1721997096896,48.77136798,178.86,178.77,0.8122136]
[1721997097052,20.0,178.86,178.77,0.8122136]
[1721997097376,20.0,178.88,178.79,5.5931]
[1721997097578,20.0,178.88,178.8,5.5928]
[1721997097775,20.0,178.88,178.82,5.592]
[1721997097975,20.0,178.9,178.83,45.0]
[1721997098368,20.0,178.9,178.82,45.0]
[1721997098555,20.0,178.88,178.82,45.0]
[1721997098898,20.0,178.85,178.81,6.4024]
[1721997099991,5.5894,178.91,178.81,6.4024]
[1721997099992,20.0,178.87,178.81,6.4024]
[1721997100364,40.0,178.87,178.81,6.4024]
[1721997100679,15.27919248,178.95,178.81,6.4024]
[1721997100680,20.0,178.85,178.81,6.4024]
[1721997100886,20.0,178.87,178.81,6.4024]
[1721997101387,20.0,178.9,178.81,11.9948]
[1721997101561,20.0,178.88,178.82,45.0]
[1721997102272,20.0,178.9,178.82,45.0]
[1721997102574,20.0,178.88,178.82,45.0]
[1721997102885,20.0,178.85,178.77,50.2286136]
[1721997103182,20.0,178.87,178.78,20.0]
[1721997103481,0.97133673,178.84,178.78,20.0]
[1721997103894,20.0,178.85,178.78,20.0]
[1721997104085,0.9711467,178.83,178.78,20.0]
[1721997104286,20.9711467,178.83,178.77,44.6350136]
[1721997104488,20.0,178.81,178.77,7.4250136]
[1721997105068,40.9711467,178.83,178.77,7.4250136]
[1721997105384,0.9711467,178.83,178.77,7.4250136]
[1721997105764,40.0,178.79,178.77,0.8122136]
[1721997105971,20.0,178.79,178.77,0.8122136]
[1721997108391,20.0,178.82,178.77,0.8122136]
[1721997109666,20.0,178.8,178.77,0.8122136]
[1721997109882,40.0,178.8,178.77,0.8122136]
[1721997110093,20.0,178.78,178.77,0.8122136]
[1721997110270,40.0,178.78,178.77,0.8122136]
[1721997110690,20.0,178.78,178.77,0.8122136]
[1721997110867,40.0,178.78,178.77,0.8122136]
[1721997111068,20.0,178.78,178.77,0.8122136]
[1721997111269,45.5934,178.78,178.77,0.8122136]
[1721997111775,40.0,178.78,178.77,0.8122136]
[1721997112280,20.0,178.78,178.77,0.8122136]
[1721997112687,20.0,178.8,178.77,0.8122136]
[1721997114285,20.0,178.78,178.77,0.8122136]
[1721997115677,20.0,178.79,178.77,0.8122136]
[1721997117098,20.0,178.78,178.77,0.8122136]
[1721997117585,20.0,178.79,178.77,0.8122136]
[1721997117765,20.0,178.78,178.77,0.8122136]
[1721997117969,20.0,178.79,178.77,0.8122136]
[1721997118189,40.0,178.79,178.77,0.8122136]
[1721997118469,20.0,178.78,178.77,0.8122136]
[1721997118890,20.0,178.79,178.77,0.8122136]
[1721997121126,40.0,178.79,178.77,0.8122136]
[1721997121320,20.0,178.79,178.77,0.8122136]
[1721997121623,40.0,178.79,178.77,0.8122136]
[1721997121803,20.0,178.79,178.77,0.8122136]
[1721997122201,40.0,178.79,178.77,0.8122136]
[1721997123518,20.0,178.79,178.77,0.8122136]
[1721997124523,20.97044347,178.79,178.77,0.8122136]
[1721997125693,10.08894831,178.78,178.77,0.8122136]
[1721997126206,20.97044347,178.79,178.77,0.8122136]
[1721997126593,0.97044347,178.79,178.77,0.8122136]
[1721997126802,0.97044347,178.79,178.77,7.1347136]
[1721997126994,40.0,178.86,178.78,45.0]
[1721997127216,20.0,178.84,178.78,45.0]
[1721997127417,10.08684616,178.83,178.78,45.0]
[1721997127719,6.72454775,178.82,178.78,50.361582]
[1721997127922,6.72454775,178.81,178.78,44.768182]
[1721997128124,6.72454775,178.8,178.78,44.768182]
[1721997128299,6.72454775,178.87,178.78,50.361482]
[1721997128492,16.80925489,178.86,178.78,44.768182]
[1721997128689,0.9700033,178.89,178.82,21.2164]
[1721997128909,6.72228701,178.88,178.82,21.2164]
[1721997129113,6.72228701,178.87,178.82,21.2164]
[1721997129330,6.72228701,178.86,178.82,21.2164]
[1721997129631,20.0,178.89,178.82,21.2164]
[1721997129923,20.0,178.89,178.83,45.0]
[1721997130131,20.0,178.91,178.83,45.0]
[1721997130494,16.13384506,178.9,178.83,45.0]
[1721997130728,20.0,178.92,178.83,45.0]
[1721997130900,20.0,178.95,178.83,45.0]
[1721997131099,20.0,178.95,178.85,5.5912]
[1721997131428,16.13032845,178.94,178.86,45.0]
[1721997131616,20.0,178.97,178.87,5.5905]
[1721997131793,16.1299112,178.96,178.88,45.0]
[1721997132134,20.0,178.97,178.88,45.0]
[1721997132426,20.0,178.99,178.89,6.5912]
[1721997132595,16.12853384,178.98,178.91,16.5986]
[1721997132797,20.0,178.99,178.92,45.0]
[1721997133018,20.0,179.02,178.92,45.0]
[1721997133328,16.12657027,179.01,178.92,45.0]
[1721997133925,16.12657027,179.03,178.92,82.23]
[1721997134112,28.76449595,179.06,178.92,82.23]
[1721997134113,16.12657027,179.05,178.93,20.0]
[1721997134325,20.0,179.04,178.94,45.0]
[1721997134528,16.12518255,179.03,178.94,45.0]
[1721997134870,0.96970575,179.07,178.98,37.14]
[1721997135134,20.0,179.11,179.0,16.4775]
[1721997135135,16.12163731,179.1,179.0,16.4775]
[1721997135297,16.12163731,179.1,179.01,45.0]
[1721997135501,16.12163731,179.12,179.01,45.0]
[1721997135909,20.0,179.11,179.01,45.0]
[1721997136107,16.12163731,179.1,179.01,45.0]
[1721997136301,36.12163731,179.1,179.01,45.0]
[1721997136630,16.12163731,179.09,179.01,45.0]
[1721997137106,20.0,179.13,179.01,45.0]
[1721997137500,20.0,179.15,179.04,30.37]
[1721997137736,20.0,179.15,179.05,45.0]
[1721997137904,40.0,179.17,179.05,45.0]
[1721997138324,20.0,179.17,179.05,45.0]
[1721997138535,20.0,179.19,179.05,45.0]
[1721997138835,20.0,179.21,179.12,30.37]
[1721997138836,10.07198885,179.18,179.12,30.37]
[1721997139034,10.06940062,179.2,179.13,45.0]
[1721997139332,20.0,179.21,179.13,45.0]
[1721997139633,20.0,179.23,179.14,6.4139]
[1721997139937,20.0,179.23,179.15,45.0]
[1721997140145,20.96936193,179.25,179.15,45.0]
[1721997140304,20.96936193,179.25,179.16,30.37]
[1721997140600,20.0,179.25,179.17,45.0]
[1721997140800,0.96947243,179.29,179.17,45.0]
[1721997140801,20.96947243,179.29,179.17,45.0]
[1721997141033,40.0,179.31,179.2,30.37]
[1721997141340,40.0,179.31,179.21,45.0]
[1721997141528,20.0,179.29,179.21,45.0]
[1721997141699,20.0,179.27,179.21,45.0]
[1721997142119,20.0,179.25,179.16,30.37]
[1721997142329,20.0,179.29,179.17,65.0]
[1721997142624,20.0,179.3,179.17,65.0]
[1721997142827,20.0,179.29,179.17,65.0]
[1721997143034,20.0,179.27,179.17,65.0]
[1721997143253,20.0,179.25,179.17,65.0]
[1721997143425,20.0,179.27,179.17,65.0]
[1721997143604,20.0,179.29,179.17,65.0]
[1721997143940,20.0,179.28,179.17,65.0]
[1721997144301,20.0,179.26,179.17,65.0]
[1721997144502,20.0,179.24,179.17,20.0]
[1721997144750,20.0,179.21,179.14,6.4139]
[1721997145032,20.0,179.18,179.11,15.093]
[1721997145824,29.0703,179.26,179.06,15.9628]
[1721997145825,20.0,179.16,179.06,15.9628]
[1721997146711,20.0,179.14,179.06,15.9628]
[1721997146920,20.0,179.09,179.01,30.37]
[1721997147134,20.0,179.1,179.0,21.725]
[1721997147805,20.0,179.11,179.0,21.725]
[1721997148353,20.0,179.13,179.0,21.725]
[1721997148656,40.0,179.09,179.0,21.725]
[1721997148839,20.0,179.06,179.0,21.725]
[1721997149145,20.0,179.06,179.0,6.4541]
[1721997149641,20.0,179.04,178.95,6.0099]
[1721997149961,20.0,179.02,178.83,37.12]
[1721997150147,20.0,179.05,178.85,37.17]
[1721997150340,40.0,179.05,178.86,8.28496128]
[1721997150660,40.0,179.05,178.9,37.17]
[1721997150858,20.0,179.0,178.9,37.17]
[1721997151157,20.0,179.01,178.9,37.17]
[1721997151365,20.0,179.01,178.86,7.16728142]
[1721997151860,20.0,179.03,178.86,8.28515061]
[1721997152037,20.0,179.03,178.89,37.17]
[1721997152464,20.0,179.0,178.89,37.17]
[1721997152763,20.0,178.99,178.84,21.2629]
[1721997152929,20.0,179.0,178.84,21.2629]
[1721997153566,20.0,179.01,178.84,21.2629]
[1721997153567,20.0,178.97,178.84,21.2629]
[1721997154163,20.0,179.01,178.84,21.2629]
[1721997154164,20.0,178.99,178.84,21.2629]
[1721997154342,20.0,178.97,178.84,21.2629]
[1721997154549,20.0,178.95,178.84,21.2629]
[1721997154752,20.0,178.93,178.84,21.2629]
[1721997155129,20.0,178.95,178.84,21.2629]
[1721997155328,20.0,178.97,178.84,21.2629]
[1721997155532,20.0,178.94,178.84,21.2629]
[1721997156347,6.3567,179.04,178.84,21.2629]
[1721997156348,20.0,178.92,178.84,21.2629]
[1721997157558,20.0,178.94,178.84,21.2629]
[1721997157971,20.0,178.94,178.85,20.0]
[1721997158333,20.0,178.92,178.86,45.0]
[1721997158735,20.0,178.92,178.85,20.0]
[1721997158936,20.0,178.9,178.84,21.2629]
[1721997159765,20.0,178.9,178.79,37.17]
[1721997159766,20.0,178.87,178.79,21.8567]
[1721997160280,20.0,178.87,178.79,27.4496]
[1721997160465,20.0,178.91,178.79,21.8567]
[1721997160958,20.0,178.91,178.82,5.5919]
[1721997161157,20.0,178.91,178.83,45.0]
[1721997161542,0.97040248,178.92,178.83,50.5918]
[1721997161742,20.0,178.91,178.83,50.5918]
[1721997162049,20.0,178.91,178.83,45.0]
[1721997162260,20.0,178.91,178.82,45.0]
[1721997162451,20.0,178.93,178.83,20.0]
[1721997162767,20.0,178.93,178.84,45.0]
[1721997163277,20.97019912,178.95,178.86,5.5909]
[1721997163278,40.97019912,178.95,178.86,5.5909]
[1721997163448,20.0,178.93,178.84,45.0]
[1721997163774,20.0,178.93,178.85,20.0]
[1721997163971,40.97019912,178.95,178.86,45.0]
[1721997164175,140.2353166,178.99,178.89,16.3632]
[1721997164480,140.2353166,178.99,178.9,65.0]
[1721997165463,160.2353166,178.99,178.9,65.0]
[1721997165652,20.0,178.97,178.9,65.0]
[1721997166048,20.0,179.02,178.9,65.0]
[1721997166677,20.0,178.99,178.9,65.0]
[1721997167856,20.0,178.99,178.9,20.0]
[1721997168068,20.0,179.02,178.9,20.0]
[1721997168069,20.0,178.96,178.9,20.0]
[1721997168689,20.0,178.94,178.85,30.42]
[1721997168899,20.0,178.92,178.84,6.3153]
[1721997169680,20.0,178.94,178.84,6.3153]
[1721997170086,20.0,178.92,178.84,6.3153]
[1721997170251,20.0,178.92,178.85,20.0]
[1721997170882,20.0,178.94,178.84,6.3153]
[1721997171048,20.0,178.96,178.84,6.3153]
[1721997171249,40.0,178.96,178.88,5.5901]
[1721997171556,20.0,178.92,178.85,75.42]
[1721997172073,20.0,178.92,178.86,20.0]
[1721997172271,20.0,178.93,178.87,45.0]
[1721997172576,20.0,178.91,178.86,20.0]
[1721997173152,20.0,178.95,178.86,20.0]
[1721997173351,20.0,178.95,178.87,45.0]
[1721997174159,20.0,178.97,178.87,45.0]
[1721997174882,20.0,178.97,178.88,20.0]
[1721997175096,20.0,178.97,178.89,45.0]
[1721997175294,20.0,179.01,178.9,20.0]
[1721997175687,20.0,179.01,178.91,45.0]
[1721997176067,20.0,179.01,178.92,20.0]
[1721997176271,0.96951656,179.04,178.94,6.0025]
[1721997176472,0.96951656,179.04,178.95,45.0]
[1721997176672,40.0,179.05,178.95,45.0]
[1721997177078,0.96919537,179.06,178.95,45.0]
[1721997177277,0.96919537,179.06,178.96,20.0]
[1721997177597,20.0,179.07,178.97,45.0]
[1721997178579,20.96902208,179.09,178.97,75.42]
[1721997178904,20.0,179.11,178.98,20.0]
[1721997179089,20.0,179.12,179.01,30.42]
[1721997179292,20.96880174,179.13,179.02,67.1708]
[1721997179816,20.0,179.11,179.02,67.1708]
[1721997179982,20.0,179.09,179.02,67.1708]
[1721997180377,20.0,179.12,179.02,67.1708]
[1721997180575,40.0,179.12,179.02,67.1708]
[1721997180778,20.0,179.1,179.02,67.1708]
[1721997180989,20.0,179.08,179.02,67.1708]
[1721997181205,20.0,179.08,179.02,22.1708]
[1721997181578,20.0,179.1,179.02,22.1708]
[1721997181784,20.0,179.12,179.03,45.0]
[1721997181996,20.0,179.13,179.03,45.0]
[1721997182495,40.0,179.15,179.03,45.0]
[1721997182703,20.0,179.13,179.03,45.0]
[1721997183606,20.0,179.17,179.05,30.42]
[1721997183814,20.0,179.17,179.06,65.0]
[1721997184109,20.0,179.18,179.06,65.0]
[1721997184309,20.0,179.19,179.06,65.0]
[1721997184310,20.0,179.16,179.06,65.0]
[1721997184510,40.0,179.16,179.06,65.0]
[1721997184715,20.0,179.16,179.06,65.0]
[1721997185016,20.0,179.18,179.06,65.0]
[1721997186019,20.0,179.2,179.06,65.0]
[1721997186889,20.0,179.2,179.07,6.3932]
[1721997187207,20.0,179.2,179.09,15.1488]
[1721997187379,16.3008,179.27,179.1,65.0]
[1721997187380,20.0,179.22,179.1,65.0]
[1721997187584,20.0,179.24,179.1,65.0]
[1721997188015,20.0,179.21,179.1,65.0]
[1721997188217,20.0,179.2,179.1,65.0]
[1721997188511,20.0,179.21,179.1,65.0]
[1721997188698,20.0,179.24,179.1,65.0]
[1721997189111,40.0,179.24,179.1,65.0]
[1721997189412,20.0,179.24,179.1,65.0]
[1721997190005,0.96814885,179.25,179.18,15.9139]
[1721997190318,20.0,179.31,179.19,65.0]
[1721997191114,40.0,179.31,179.21,30.42]
[1721997191415,20.0,179.27,179.18,15.9139]
[1721997191588,40.0,179.29,179.19,45.0]
[1721997191914,20.0,179.31,179.19,45.0]
[1721997192291,20.0,179.32,179.19,45.0]
[1721997192292,40.0,179.32,179.19,45.0]
[1721997192488,20.0,179.29,179.19,45.0]
[1721997192794,20.0,179.3,179.19,45.0]
[1721997192992,20.0,179.32,179.19,45.0]
[1721997193311,20.0,179.3,179.19,45.0]
[1721997193924,20.0,179.32,179.19,45.0]
[1721997194511,20.0,179.32,179.2,20.0]
[1721997194814,20.0,179.28,179.21,45.0]
[1721997195019,20.0,179.31,179.21,45.0]
[1721997195533,25.5769,179.31,179.21,45.0]
[1721997196199,5.5767,179.32,179.21,45.0]
[1721997196512,20.0,179.33,179.22,1.11580888]
[1721997196899,20.0,179.33,179.21,75.42]
[1721997197099,20.0,179.33,179.22,6.2978]
[1721997197328,20.96771539,179.35,179.23,45.0]
[1721997197526,5.576,179.34,179.23,45.0]
[1721997197735,20.96771539,179.35,179.23,45.0]
[1721997197897,5.576,179.34,179.23,45.0]
[1721997198100,20.0,179.32,179.23,45.0]
[1721997198328,45.5769,179.32,179.23,45.0]
[1721997198910,5.5775,179.29,179.23,45.0]
[1721997199128,20.0,179.3,179.23,45.0]
[1721997199509,40.0,179.3,179.23,45.0]
[1721997199712,20.0,179.28,179.22,6.2978]
[1721997200034,20.0,179.28,179.18,15.9139]
[1721997200035,20.0,179.24,179.18,15.9139]
[1721997200205,20.0,179.21,179.14,15.3689]
[1721997200412,20.0,179.23,179.14,15.3689]
[1721997200737,20.0,179.19,179.14,15.3689]
[1721997200936,20.0,179.21,179.14,15.3689]
[1721997201256,40.0,179.21,179.14,15.3689]
[1721997201445,50.5893,179.32,179.12,6.3463]
[1721997201446,20.0,179.17,179.12,6.3463]
[1721997201609,45.5822,179.15,179.09,15.5596]
[1721997201809,20.0,179.11,179.07,6.638]
[1721997202036,5.5828,179.12,179.07,6.638]
[1721997202333,21.5075,179.21,179.03,15.5596]
[1721997202334,20.0,179.09,179.03,15.5596]
[1721997202540,45.5828,179.12,179.03,15.5596]
[1721997202830,40.0,179.12,179.03,15.5596]
[1721997203135,20.0,179.12,179.03,15.5596]
[1721997203441,20.0,179.14,179.03,15.5596]
[1721997204227,40.0,179.16,179.03,15.5596]
[1721997204741,40.0,179.16,179.04,20.0]
[1721997204915,40.0,179.16,179.04,65.0]
[1721997205321,20.0,179.14,179.04,65.0]
[1721997205663,40.0,179.14,179.04,65.0]
[1721997205951,25.5839,179.09,179.02,6.638]
[1721997206134,25.5838,179.09,178.98,15.9625]
[1721997207253,40.0,179.07,178.98,15.9625]
[1721997207855,20.0,179.09,178.98,15.9625]
[1721997208049,40.0,179.09,178.98,15.9625]
[1721997208257,20.0,179.1,178.98,15.9625]
[1721997208938,5.5832,179.11,178.99,45.0]
[1721997209133,20.0,179.08,178.98,15.9625]
[1721997209333,20.0,179.04,178.97,6.4669]
[1721997209535,40.0,179.04,178.97,6.4669]
[1721997210041,20.0,179.04,178.97,6.4669]
[1721997211267,40.0,179.04,178.97,6.4669]
[1721997211473,20.0,179.02,178.97,6.4669]
[1721997211640,40.0,179.04,178.97,6.4669]
[1721997212243,20.0,179.0,178.97,6.4669]
[1721997212443,20.0,179.0,178.93,15.0172]
[1721997212865,40.0,179.0,178.93,15.0172]
[1721997213087,20.0,178.97,178.92,6.2016]
[1721997213259,20.0,178.97,178.88,15.5291]
[1721997214363,20.0,178.96,178.88,15.5291]
[1721997214560,20.0,178.97,178.88,15.5291]
[1721997214881,20.0,178.98,178.88,15.5291]
[1721997215260,20.0,179.01,178.89,20.0]
[1721997215460,20.0,179.02,178.89,20.0]
[1721997215656,20.0,179.02,178.9,45.0]
[1721997216186,20.0,179.01,178.9,45.0]
[1721997216393,25.5864,179.01,178.9,45.0]
[1721997216574,25.5866,179.0,178.9,45.0]
[1721997216765,5.5866,179.0,178.9,45.0]
[1721997216962,20.0,178.99,178.9,45.0]
[1721997217361,0.96889277,179.0,178.9,45.0]
[1721997217569,20.0,179.01,178.9,45.0]
[1721997217973,5.5866,179.0,178.9,45.0]
[1721997218176,20.0,179.01,178.9,45.0]
[1721997218577,20.96897163,179.03,178.9,45.0]
[1721997219287,20.0,179.01,178.91,20.0]
[1721997219596,20.0,179.01,178.92,45.0]
[1721997219763,5.587,178.99,178.92,45.0]
[1721997220102,20.0,178.99,178.92,45.0]
[1721997220304,20.0,178.98,178.92,45.0]
[1721997220807,20.0,178.96,178.88,15.5291]
[1721997220999,20.0,178.96,178.89,20.0]
[1721997221201,20.0,179.01,178.89,20.0]
[1721997221595,40.0,179.01,178.89,20.0]
[1721997221913,20.0,178.99,178.89,20.0]
[1721997222086,20.0,178.99,178.9,45.0]
[1721997222285,20.0,178.99,178.91,20.0]
[1721997222501,20.0,178.99,178.92,45.0]
[1721997224911,20.0,179.01,178.92,45.0]
[1721997225079,20.96897163,179.03,178.92,45.0]
[1721997225286,20.0,179.01,178.92,45.0]
[1721997225509,20.0,178.99,178.92,45.0]
[1721997225711,20.0,178.99,178.88,15.5291]
[1721997226009,40.0,178.95,178.88,15.5291]
[1721997226508,20.0,178.95,178.88,15.5291]
[1721997226885,40.0,178.95,178.88,15.5291]
[1721997227383,20.0,178.98,178.88,15.5291]
[1721997228413,20.0,178.98,178.89,45.0]
[1721997229514,20.0,178.97,178.89,45.0]
[1721997229689,20.0,178.98,178.89,45.0]
[1721997229883,20.0,179.0,178.89,45.0]
[1721997230285,40.0,179.02,178.9,20.0]
[1721997230612,20.0,179.01,178.91,45.0]
[1721997231009,20.96897163,179.03,178.92,50.42]
[1721997231332,20.0,179.05,178.93,46.1176626]
[1721997231485,20.9687858,179.05,178.95,6.6044]
[1721997231688,0.9687858,179.05,178.96,45.0]
[1721997232214,40.0,179.06,178.96,45.0]
[1721997232523,20.96875902,179.06,178.96,45.0]
[1721997232813,0.96875902,179.06,178.96,45.0]
[1721997233414,0.96875902,179.06,178.97,15.3339]
[1721997233617,20.0,179.09,178.98,45.0]
[1721997233913,20.96861225,179.09,178.98,45.0]
[1721997234304,0.96861225,179.09,178.99,21.11721031]
[1721997234507,0.96861225,179.09,179.0,45.0]
[1721997235234,0.96861225,179.09,179.0,75.42]
[1721997235434,0.96861225,179.09,179.02,6.5608]
[1721997235605,0.96861225,179.09,179.03,45.0]
[1721997235804,20.0,179.14,179.03,45.0]
[1721997236208,26.55038396,179.15,179.04,20.0]
[1721997236406,20.0,179.11,179.05,45.0]
[1721997236636,20.0,179.11,179.02,6.5608]
[1721997236807,20.0,179.11,179.03,65.0]
[1721997237014,20.0,179.13,179.03,65.0]
[1721997237207,20.96828396,179.15,179.03,65.0]
[1721997237536,0.96828396,179.15,179.03,65.0]
[1721997237736,0.96828396,179.15,179.04,16.5352]
[1721997237902,25.5816,179.16,179.05,65.0]
[1721997238105,20.0,179.14,179.05,65.0]
[1721997238340,40.0,179.14,179.05,65.0]
[1721997238506,20.0,179.12,179.05,65.0]
[1721997238912,40.0,179.14,179.05,65.0]
[1721997239119,20.0,179.14,179.05,65.0]
[1721997239741,6.55011318,179.15,179.05,45.0]
[1721997239742,20.0,179.12,179.05,45.0]
[1721997240306,20.0,179.13,179.05,45.0]
[1721997240530,20.0,179.14,179.05,45.0]
[1721997240734,0.96821318,179.15,179.05,45.0]